bitfinex-derivatives/quotes_SOLF0:USTF0_20250507
["timestamp","ask_amount","ask_price","bid_price","bid_amount"]
[1746624888665,30.42,146.96,146.88,30.42]
[1746624889061,6.808,146.9,146.88,30.42]
[1746624891269,6.8081,146.89,146.88,30.42]
[1746624891562,18.11172621,146.94,146.85,30.42]
[1746624891763,30.42,146.92,146.85,30.42]
[1746624891966,2.014,146.91,146.82,30.42]
[1746624892168,4.0285,146.91,146.82,37.2311]
[1746624892361,6.8096,146.86,146.82,37.2311]
[1746624892562,4.0285,146.91,146.82,37.2311]
[1746624892964,22.14022621,146.91,146.81,30.42]
[1746624893462,6.8107,146.84,146.81,30.42]
[1746624894865,30.42,146.88,146.81,30.42]
[1746624895566,6.81,146.85,146.81,37.2316]
[1746624896073,6.81,146.85,146.82,6.8113]
[1746624896273,6.81,146.85,146.81,30.42]
[1746624896570,6.81,146.85,146.81,37.2316]
[1746624897472,30.42,146.88,146.81,30.42]
[1746624898676,30.42,146.88,146.81,37.2314]
[1746624899172,6.8102,146.85,146.81,37.2314]
[1746624900275,6.8098,146.86,146.81,30.42]
[1746624900478,30.42,146.88,146.81,30.42]
[1746624900876,6.8094,146.87,146.83,6.8106]
[1746624901077,43.66031173,146.91,146.81,30.42]
[1746624901377,32.334,146.91,146.81,41.74631173]
[1746624901578,6.8088,146.88,146.85,6.8097]
[1746624901778,32.334,146.91,146.81,41.74631173]
[1746624901969,43.66031173,146.91,146.81,30.42]
[1746624902578,11.32631173,146.88,146.81,30.42]
[1746624902976,6.811,146.83,146.81,30.42]
[1746624903179,11.32631173,146.88,146.81,30.42]
[1746624903775,30.32,146.87,146.78,30.32]
[1746624903973,6.8121,146.81,146.78,30.32]
[1746624904175,32.3535,146.87,146.78,30.32]
[1746624904376,45.9721,146.87,146.78,30.32]
[1746624904572,11.32631173,146.85,146.78,30.32]
[1746624904779,6.8127,146.79,146.78,30.32]
[1746624905684,6.8125,146.8,146.78,30.32]
[1746624905881,13.6191,146.86,146.75,34.6116]
[1746624906084,6.814,146.77,146.75,34.6116]
[1746624906382,6.814,146.77,146.75,30.32]
[1746624906779,30.32,146.83,146.73,2.1298]
[1746624907082,18.13396351,146.82,146.72,30.32]
[1746624907380,31.75676351,146.82,146.72,30.32]
[1746624907581,1.9956,146.81,146.69,32.3961]
[1746624908385,6.8154,146.74,146.69,32.3961]
[1746624908683,30.32,146.77,146.69,30.32]
[1746624908883,32.4959,146.76,146.69,30.32]
[1746624909084,6.8155,146.74,146.69,30.32]
[1746624909284,32.4959,146.76,146.69,30.32]
[1746624909485,30.32,146.76,146.7,6.8166]
[1746624909681,30.32,146.76,146.69,30.32]
[1746624910182,6.8146,146.75,146.69,30.32]
[1746624910782,6.8143,146.76,146.71,6.8163]
[1746624911986,6.8143,146.76,146.72,6.8159]
[1746624912389,30.32,146.79,146.69,30.32]
[1746624913188,30.32,146.79,146.75,6.8143]
[1746624913388,30.32,146.79,146.73,30.34]
[1746624913690,30.32,146.79,146.76,6.8141]
[1746624913989,30.34,146.82,146.73,30.34]
[1746624914184,30.34,146.82,146.74,6.4523]
[1746624914387,6.8121,146.81,146.77,6.8134]
[1746624914890,30.34,146.82,146.77,6.8134]
[1746624915689,6.812,146.81,146.77,6.8134]
[1746624916388,6.8123,146.8,146.77,6.8134]
[1746624916591,30.34,146.82,146.76,6.814]
[1746624916991,6.8127,146.8,146.76,6.814]
[1746624917296,30.34,146.82,146.73,30.34]
[1746624917893,30.34,146.82,146.73,37.1553]
[1746624918094,48.47396351,146.82,146.67,6.3439]
[1746624918296,48.47396351,146.82,146.68,30.32]
[1746624918491,48.47396351,146.82,146.71,6.8165]
[1746624918691,6.8145,146.76,146.71,6.8165]
[1746624918894,30.32,146.78,146.71,6.8165]
[1746624919793,30.32,146.78,146.7,6.8167]
[1746624920796,6.8153,146.74,146.7,6.8167]
[1746624922297,32.333,146.78,146.69,6.8172]
[1746624922596,32.333,146.78,146.68,30.32]
[1746624923199,6.816,146.72,146.68,37.1376]
[1746624923902,6.817,146.7,146.68,30.32]
[1746624924391,32.333,146.78,146.68,30.32]
[1746624925000,6.8174,146.69,146.64,30.34]
[1746624925194,30.2,146.73,146.64,30.34]
[1746624925395,6.8181,146.68,146.64,37.1595]
[1746624925597,4.1876,146.72,146.64,30.34]
[1746624925800,6.3074,146.72,146.61,30.2]
[1746624926198,18.13396351,146.7,146.58,36.5476]
[1746624926506,30.2,146.69,146.58,36.5476]
[1746624926893,6.821,146.62,146.58,36.5476]
[1746624927092,30.2,146.69,146.58,36.5476]
[1746624927302,30.2,146.69,146.58,32.1898]
[1746624928203,6.8197,146.65,146.58,32.1898]
[1746624928502,30.2,146.69,146.6,6.8215]
[1746624928702,6.8207,146.62,146.58,32.1898]
[1746624929402,6.8207,146.62,146.58,37.0224]
[1746624929806,6.8204,146.63,146.58,30.2]
[1746624930203,30.22,146.65,146.58,30.2]
[1746624930501,48.35396351,146.65,146.55,32.3385]
[1746624930694,4.1949,146.64,146.52,30.22]
[1746624930902,6.1925,146.64,146.52,30.22]
[1746624931202,6.1925,146.64,146.53,6.8247]
[1746624931803,6.8228,146.58,146.53,6.8247]
[1746624932008,36.4125,146.64,146.52,30.22]
[1746624932195,34.4149,146.64,146.53,18.13396351]
[1746624932400,34.4149,146.64,146.56,6.8231]
[1746624932595,34.4149,146.64,146.56,30.22]
[1746624933105,34.4149,146.64,146.56,37.0434]
[1746624933508,34.4149,146.64,146.57,6.8229]
[1746624933702,32.2618,146.64,146.56,30.22]
[1746624933905,6.8211,146.62,146.56,30.22]
[1746624934101,32.2618,146.64,146.57,6.8228]
[1746624934806,6.8212,146.61,146.57,6.8228]
[1746624935207,32.2618,146.64,146.56,30.22]
[1746624935605,6.8228,146.58,146.54,6.8243]
[1746624936002,6.8216,146.6,146.53,30.22]
[1746624936202,4.0946,146.63,146.53,30.22]
[1746624936403,4.0946,146.63,146.55,6.8236]
[1746624936606,4.0946,146.63,146.53,30.22]
[1746624936905,2.0406,146.63,146.56,6.8232]
[1746624937107,32.2618,146.64,146.53,30.22]
[1746624937304,30.22,146.64,146.59,6.822]
[1746624937807,32.39,146.69,146.57,30.22]
[1746624938008,32.39,146.69,146.6,6.8212]
[1746624938408,32.39,146.69,146.61,6.8209]
[1746624938611,32.39,146.69,146.58,6.3376]
[1746624938807,6.82,146.64,146.58,6.3376]
[1746624939210,6.82,146.64,146.6,6.8213]
[1746624939614,6.82,146.64,146.58,6.3376]
[1746624939911,6.8202,146.63,146.58,6.3376]
[1746624940408,32.39,146.69,146.58,6.3376]
[1746624940611,6.8213,146.61,146.58,6.3376]
[1746624940815,32.39,146.69,146.58,6.3376]
[1746624941309,6.8212,146.61,146.58,13.1601]
[1746624942208,6.8218,146.6,146.58,6.3376]
[1746624942409,30.22,146.65,146.58,6.3376]
[1746624942708,30.22,146.65,146.57,30.22]
[1746624942907,6.8225,146.58,146.57,30.22]
[1746624943411,30.22,146.65,146.57,30.22]
[1746624943613,2.0248,146.64,146.57,30.22]
[1746624943913,6.8218,146.6,146.57,30.22]
[1746624944313,2.0248,146.64,146.57,30.22]
[1746624944507,30.22,146.65,146.57,30.22]
[1746624944914,6.8204,146.63,146.59,6.8218]
[1746624945810,6.8204,146.63,146.58,6.8223]
[1746624946003,6.8207,146.62,146.58,6.8223]
[1746624946208,30.22,146.65,146.57,30.22]
[1746624947014,30.22,146.65,146.54,30.22]
[1746624947015,6.8233,146.57,146.54,30.22]
[1746624947514,6.8236,146.56,146.54,30.22]
[1746624947912,30.22,146.61,146.52,36.5371]
[1746624948716,30.22,146.61,146.52,32.2451]
[1746624948918,48.35396351,146.61,146.52,32.2451]
[1746624949213,30.22,146.61,146.53,6.8248]
[1746624949915,30.22,146.61,146.52,32.2451]
[1746624950116,30.22,146.61,146.53,2.089]
[1746624950319,37.0412,146.61,146.53,2.089]
[1746624950816,6.8216,146.6,146.55,6.8235]
[1746624951015,30.22,146.61,146.55,6.8235]
[1746624951513,30.22,146.61,146.54,6.8242]
[1746624951908,6.8229,146.58,146.53,2.089]
[1746624952115,6.8229,146.58,146.54,6.8241]
[1746624952816,6.8221,146.59,146.53,2.089]
[1746624953117,30.22,146.61,146.53,2.089]
[1746624953621,6.8226,146.58,146.55,6.8236]
[1746624954216,30.22,146.61,146.53,2.089]
[1746624954817,6.8234,146.57,146.53,2.089]
[1746624955115,30.22,146.61,146.53,2.089]
[1746624955316,6.8235,146.56,146.53,2.089]
[1746624955715,30.22,146.61,146.53,2.089]
[1746624955916,6.823,146.57,146.53,2.089]
[1746624956215,30.22,146.61,146.53,8.9136]
[1746624957219,6.8238,146.56,146.53,8.9136]
[1746624957617,30.22,146.61,146.54,6.8244]
[1746624957822,6.8223,146.59,146.53,2.089]
[1746624958022,19.32159575,146.67,146.53,20.22296351]
[1746624958023,30.18,146.65,146.53,20.22296351]
[1746624958214,6.8214,146.61,146.53,20.22296351]
[1746624958410,30.18,146.65,146.53,20.22296351]
[1746624958621,30.18,146.65,146.59,6.8218]
[1746624958817,30.18,146.65,146.59,30.2]
[1746624959116,6.821,146.62,146.59,30.2]
[1746624959317,30.18,146.65,146.59,30.2]
[1746624959619,6.8209,146.62,146.59,30.2]
[1746624959816,43.836,146.68,146.6,6.8215]
[1746624960221,6.8205,146.63,146.6,6.8215]
[1746624960419,6.8205,146.63,146.59,30.2]
[1746624960821,43.836,146.68,146.59,30.2]
[1746624961216,30.2,146.68,146.59,37.0216]
[1746624961414,30.2,146.68,146.59,30.2]
[1746624961820,6.82,146.64,146.6,6.8213]
[1746624962121,30.2,146.68,146.6,6.8213]
[1746624962420,6.82,146.64,146.6,6.8213]
[1746624962920,6.8208,146.62,146.59,30.2]
[1746624963520,30.2,146.68,146.59,30.2]
[1746624963720,18.13396351,146.67,146.59,30.2]
[1746624964018,30.2,146.68,146.6,6.8215]
[1746624964222,30.2,146.68,146.59,30.2]
[1746624964722,30.2,146.68,146.59,37.0216]
[1746624965323,6.8205,146.63,146.59,37.0216]
[1746624965824,6.8205,146.63,146.6,6.8215]
[1746624966019,30.2,146.68,146.59,30.2]
[1746624966324,38.58316351,146.72,146.6,2.147]
[1746624966325,30.18,146.72,146.6,2.147]
[1746624966523,30.18,146.72,146.6,6.3344]
[1746624967023,30.18,146.72,146.66,6.8185]
[1746624967227,6.8173,146.7,146.66,6.8185]
[1746624967423,6.8173,146.7,146.65,36.9991]
[1746624967824,6.8175,146.69,146.65,36.9991]
[1746624968123,6.8175,146.69,146.65,30.18]
[1746624968324,6.8187,146.67,146.65,30.18]
[1746624968629,30.18,146.72,146.6,6.3344]
[1746624968923,18.13396351,146.69,146.61,30.18]
[1746624969126,30.18,146.68,146.61,30.18]
[1746624969326,6.819,146.66,146.61,30.18]
[1746624969526,30.18,146.68,146.61,30.18]
[1746624970026,6.82,146.64,146.61,30.18]
[1746624970223,30.18,146.68,146.61,30.18]
[1746624970625,2.0655,146.67,146.54,4.3039]
[1746624970827,4.0631,146.67,146.58,6.8223]
[1746624971228,4.0631,146.67,146.55,30.18]
[1746624971731,6.8219,146.6,146.55,30.18]
[1746624971927,30.18,146.64,146.56,6.8232]
[1746624972131,6.8225,146.58,146.55,30.18]
[1746624972834,6.8222,146.59,146.55,30.18]
[1746624973133,30.18,146.64,146.55,37.0037]
[1746624973431,6.8218,146.6,146.55,37.0037]
[1746624973930,6.8221,146.59,146.55,37.0037]
[1746624974832,6.8221,146.59,146.56,6.8232]
[1746624975032,6.8218,146.6,146.56,6.8232]
[1746624975234,30.18,146.64,146.55,30.18]
[1746624975433,30.18,146.64,146.58,6.8222]
[1746624975733,30.18,146.64,146.55,30.18]
[1746624976638,6.8214,146.61,146.57,6.8227]
[1746624977237,30.18,146.64,146.56,6.8232]
[1746624977431,30.18,146.64,146.55,30.18]
[1746624977938,6.8221,146.59,146.55,37.0035]
[1746624979231,6.8225,146.58,146.55,37.0035]
[1746624980036,6.8233,146.57,146.55,30.18]
[1746624980334,4.0631,146.67,146.52,619.56]
[1746624980335,30.18,146.6,146.52,619.56]
[1746624980536,6.8238,146.56,146.52,37.005]
[1746624980838,6.8238,146.56,146.52,30.18]
[1746624981129,6.8238,146.56,146.53,6.8248]
[1746624982433,6.8239,146.55,146.52,37.0052]
[1746624982640,30.18,146.6,146.52,30.18]
[1746624983038,6.8241,146.55,146.53,6.8247]
[1746624983238,6.8241,146.55,146.52,32.3371]
[1746624984144,30.18,146.6,146.52,32.3371]
[1746624984946,30.18,146.63,146.53,18.13396351]
[1746624985338,30.2,146.66,146.58,6.8222]
[1746624985841,30.2,146.66,146.59,6.822]
[1746624986142,30.2,146.66,146.57,30.2]
[1746624986343,6.8205,146.63,146.6,6.8213]
[1746624986844,30.2,146.66,146.6,6.8213]
[1746624987144,30.2,146.66,146.58,6.2846]
[1746624987646,6.1789,146.68,146.58,6.2846]
[1746624987843,6.1789,146.68,146.61,6.8209]
[1746624988042,6.1789,146.68,146.61,30.16]
[1746624988241,6.1789,146.68,146.58,13.1069]
[1746624988538,6.8209,146.62,146.58,36.4446]
[1746624988743,6.1789,146.68,146.58,36.4446]
[1746624988944,6.1789,146.68,146.6,6.8213]
[1746624990046,6.8204,146.63,146.59,6.8218]
[1746624990546,6.8204,146.63,146.6,6.8216]
[1746624990747,6.1789,146.68,146.58,36.4446]
[1746624990947,619.54,146.69,146.58,36.4446]
[1746624991149,6.8193,146.65,146.62,6.8204]
[1746624991353,6.8193,146.65,146.62,36.9804]
[1746624991551,30.16,146.69,146.62,30.16]
[1746624991752,6.8202,146.63,146.62,30.16]
[1746624992251,6.8206,146.63,146.59,30.16]
[1746624992647,32.2825,146.69,146.59,36.9819]
[1746624992849,32.2825,146.69,146.59,30.16]
[1746624993341,6.8215,146.61,146.59,30.16]
[1746624993547,32.2825,146.69,146.59,30.16]
[1746624994451,6.8205,146.63,146.59,30.16]
[1746624994651,32.2825,146.69,146.61,6.8208]
[1746624994852,32.2825,146.69,146.59,30.16]
[1746624995153,32.2825,146.69,146.61,6.8208]
[1746624995553,6.8207,146.62,146.59,30.16]
[1746624996348,6.8207,146.62,146.59,36.982]
[1746624996650,6.8207,146.62,146.59,30.16]
[1746624996851,6.8207,146.62,146.59,36.9819]
[1746624997049,6.8204,146.63,146.59,30.16]
[1746624997450,6.8204,146.63,146.6,6.8213]
[1746624997750,6.8204,146.63,146.59,30.16]
[1746624998251,32.2825,146.69,146.59,30.16]
[1746624998750,32.2825,146.69,146.6,6.8212]
[1746624999052,32.2825,146.69,146.59,30.16]
[1746624999752,32.2825,146.69,146.6,6.8212]
[1746625000045,32.2825,146.69,146.59,30.16]
[1746625000352,6.8185,146.67,146.64,6.8196]
[1746625001352,30.16,146.69,146.63,30.14]
[1746625001651,6.8181,146.68,146.65,6.8192]
[1746625001856,30.16,146.69,146.63,30.14]
[1746625002249,6.8186,146.67,146.64,6.8195]
[1746625002454,6.8186,146.67,146.63,30.14]
[1746625002653,34.3139,146.72,146.63,30.14]
[1746625002857,6.8188,146.66,146.63,30.14]
[1746625003758,6.8188,146.66,146.63,36.9598]
[1746625004359,47.9464,146.72,146.63,30.14]
[1746625004657,66.08036351,146.72,146.63,30.14]
[1746625005158,6.819,146.66,146.63,30.14]
[1746625005359,66.08036351,146.72,146.63,30.14]
[1746625005559,6.8182,146.68,146.63,30.14]
[1746625005753,34.3139,146.72,146.63,30.14]
[1746625006461,6.8185,146.67,146.64,6.8195]
[1746625006758,52.44786351,146.72,146.63,30.14]
[1746625006959,6.8195,146.65,146.63,30.14]
[1746625007160,52.44786351,146.72,146.63,30.14]
[1746625007457,6.8177,146.69,146.63,30.14]
[1746625007658,34.3139,146.72,146.63,30.14]
[1746625007857,619.58,146.76,146.64,6.3145]
[1746625008162,30.14,146.76,146.64,6.3145]
[1746625008456,6.3314,146.78,146.65,18.13396351]
[1746625008664,6.8148,146.75,146.72,6.816]
[1746625008967,6.8148,146.75,146.7,30.14]
[1746625009157,6.8148,146.75,146.71,36.9561]
[1746625009661,6.8153,146.74,146.71,36.9561]
[1746625009859,2.1037,146.78,146.71,30.14]
[1746625010064,30.14,146.79,146.71,30.14]
[1746625010464,30.14,146.79,146.71,36.9561]
[1746625010853,30.14,146.79,146.71,30.14]
[1746625011165,30.14,146.79,146.72,6.8157]
[1746625011363,6.8148,146.75,146.72,6.8157]
[1746625011567,30.14,146.79,146.71,30.14]
[1746625013261,13.6265,146.78,146.64,595.6145]
[1746625013463,48.27396351,146.79,146.65,30.14]
[1746625013662,18.13396351,146.76,146.65,36.959]
[1746625013858,36.4417,146.75,146.65,30.14]
[1746625014169,36.4417,146.75,146.66,6.8185]
[1746625014361,36.4417,146.75,146.65,30.14]
[1746625014860,6.8162,146.72,146.65,30.14]
[1746625015065,36.4417,146.75,146.65,30.14]
[1746625015255,6.817,146.7,146.65,30.14]
[1746625016266,6.8174,146.69,146.65,30.14]
[1746625016464,49.15701317,146.75,146.65,30.14]
[1746625017265,6.8169,146.71,146.66,6.8188]
[1746625017665,49.15701317,146.75,146.66,6.8188]
[1746625017865,6.8177,146.69,146.65,36.9591]
[1746625018968,30.24,146.71,146.63,30.24]
[1746625019169,30.24,146.7,146.62,30.24]
[1746625019366,30.24,146.7,146.63,6.8199]
[1746625019869,6.8181,146.68,146.64,6.8196]
[1746625020069,30.24,146.7,146.64,6.8196]
[1746625020470,6.8182,146.68,146.64,6.8196]
[1746625021371,6.8175,146.69,146.65,6.819]
[1746625021570,30.24,146.7,146.62,30.24]
[1746625021970,1.9931,146.69,146.62,30.24]
[1746625022470,30.24,146.7,146.62,30.24]
[1746625023069,6.8181,146.68,146.64,6.8195]
[1746625023372,30.24,146.7,146.62,30.24]
[1746625023871,6.8185,146.67,146.62,37.0604]
[1746625024072,30.24,146.7,146.62,30.24]
[1746625025072,6.8193,146.65,146.62,30.24]
[1746625025370,30.24,146.7,146.62,30.24]
[1746625026166,6.8202,146.63,146.62,30.24]
[1746625026773,6.8216,146.6,146.59,30.26]
[1746625027775,1.9837,146.68,146.59,30.26]
[1746625028371,6.8205,146.63,146.59,30.26]
[1746625028764,6.8199,146.64,146.59,30.26]
[1746625029066,1.9837,146.68,146.59,30.26]
[1746625029268,6.819,146.66,146.6,4.142]
[1746625029574,1.9837,146.68,146.6,4.142]
[1746625030075,6.8195,146.65,146.61,6.821]
[1746625030370,6.8195,146.65,146.6,4.142]
[1746625030576,1.9837,146.68,146.6,4.142]
[1746625030773,32.3317,146.72,146.61,12.71531317]
[1746625031768,32.3317,146.72,146.6,4.142]
[1746625032579,6.8186,146.67,146.64,6.8193]
[1746625032774,32.3317,146.72,146.63,30.26]
[1746625032975,32.3317,146.72,146.64,2.175]
[1746625033279,6.8175,146.69,146.66,6.8186]
[1746625034078,32.3317,146.72,146.64,2.175]
[1746625034577,6.8181,146.68,146.65,6.819]
[1746625034775,6.8181,146.68,146.64,2.175]
[1746625035274,6.8184,146.67,146.64,2.175]
[1746625035472,2.0717,146.72,146.64,2.175]
[1746625035977,2.0717,146.72,146.64,8.9947]
[1746625036181,2.0717,146.72,146.64,2.175]
[1746625036479,6.8174,146.7,146.67,6.8181]
[1746625036781,30.26,146.75,146.67,30.26]
[1746625037982,2.1961,146.76,146.67,30.26]
[1746625038175,30.26,146.78,146.68,4.1542]
[1746625038372,6.8151,146.74,146.71,6.8162]
[1746625038579,6.8151,146.74,146.72,30.26]
[1746625039780,6.8155,146.73,146.72,30.26]
[1746625040784,6.8153,146.74,146.72,30.26]
[1746625041079,30.26,146.78,146.72,30.26]
[1746625041382,6.8155,146.74,146.72,30.26]
[1746625041680,30.26,146.78,146.72,30.26]
[1746625041880,6.8155,146.73,146.72,30.26]
[1746625051690,6.8167,146.71,146.69,30.12]
[1746625053291,43.8867,146.78,146.69,30.12]
[1746625053784,6.8167,146.71,146.69,30.12]
[1746625054998,6.8167,146.71,146.69,36.9373]
[1746625055591,51.82831762,146.78,146.69,30.12]
[1746625055891,6.8158,146.73,146.69,38.06161762]
[1746625056089,6.8158,146.73,146.7,2.1176]
[1746625056289,6.8158,146.73,146.71,6.8164]
[1746625056590,623.4405,146.81,146.7,2.1176]
[1746625056790,34.2405,146.81,146.73,6.8153]
[1746625056980,34.2405,146.81,146.73,36.9353]
[1746625057187,34.2405,146.81,146.73,30.12]
[1746625057789,6.8149,146.75,146.73,30.12]
[1746625058491,6.8144,146.76,146.73,36.9353]
[1746625058887,6.8138,146.77,146.73,30.12]
[1746625059094,4.1205,146.81,146.73,30.12]
[1746625059693,4.1205,146.81,146.73,36.9353]
[1746625059993,6.8139,146.77,146.74,6.8148]
[1746625061191,4.1205,146.81,146.74,6.8148]
[1746625061192,6.8141,146.76,146.74,6.8148]
[1746625062790,6.8141,146.76,146.73,36.9354]
[1746625062985,6.8139,146.77,146.73,30.12]
[1746625063190,4.1205,146.81,146.75,6.8143]
[1746625063592,6.8139,146.77,146.75,6.8143]
[1746625063792,4.1205,146.81,146.73,30.12]
[1746625063993,6.8149,146.75,146.73,30.12]
[1746625064395,4.1205,146.81,146.73,30.12]
[1746625064894,4.1205,146.81,146.73,36.9353]
[1746625065095,4.1205,146.81,146.73,30.12]
[1746625065394,4.1205,146.81,146.75,6.8144]
[1746625065892,6.8135,146.78,146.75,6.8144]
[1746625066091,6.8135,146.78,146.74,6.8148]
[1746625066297,6.8135,146.78,146.73,30.12]
[1746625066597,6.8135,146.78,146.75,6.8143]
[1746625067098,4.1205,146.81,146.74,6.8148]
[1746625067099,6.8138,146.77,146.74,6.8148]
[1746625067298,4.1205,146.81,146.73,30.12]
[1746625067697,6.8134,146.78,146.75,6.8144]
[1746625068398,4.1205,146.81,146.73,30.12]
[1746625069003,6.814,146.77,146.74,6.815]
[1746625070003,6.8142,146.76,146.74,6.815]
[1746625070496,6.8151,146.74,146.73,30.12]
[1746625072101,2.1904,146.79,146.68,4.1542]
[1746625072300,2.1904,146.79,146.69,30.12]
[1746625073300,6.8148,146.75,146.69,30.12]
[1746625073500,2.1904,146.79,146.69,30.12]
[1746625073701,2.1904,146.79,146.69,36.9372]
[1746625073999,6.8158,146.73,146.69,36.9372]
[1746625074200,6.8158,146.73,146.69,30.12]
[1746625074398,6.8158,146.73,146.69,36.9372]
[1746625074703,6.8161,146.72,146.69,30.12]
[1746625075006,30.12,146.72,146.63,32.16439624]
[1746625075303,6.8182,146.68,146.63,32.16439624]
[1746625075694,30.12,146.72,146.63,32.16439624]
[1746625075900,30.12,146.72,146.61,62.28439624]
[1746625076803,6.8186,146.67,146.61,69.10529624]
[1746625077005,32.1507,146.72,146.61,69.10529624]
[1746625077303,6.8193,146.65,146.61,62.28439624]
[1746625077510,32.1507,146.72,146.61,62.28439624]
[1746625078005,6.8201,146.64,146.61,62.28439624]
[1746625078307,32.1507,146.72,146.61,62.28439624]
[1746625078603,12.69967535,146.71,146.61,30.12]
[1746625080011,6.8193,146.65,146.61,30.12]
[1746625080309,32.1507,146.72,146.61,30.12]
[1746625081312,6.82,146.64,146.61,30.12]
[1746625081708,32.1507,146.72,146.61,30.12]
[1746625083616,19.39911832,146.71,146.61,30.12]
[1746625083809,6.8206,146.62,146.61,30.12]
[1746625084917,6.8203,146.63,146.61,30.12]
[1746625085417,6.8206,146.62,146.61,30.12]
[1746625085819,41.34044151,146.68,146.59,2.1372]
[1746625086020,41.34044151,146.68,146.58,29.98]
[1746625086021,4.1146,146.67,146.58,29.98]
[1746625086519,6.822,146.59,146.58,29.98]
[1746625086909,29.98,146.63,146.55,29.98]
[1746625087107,6.8228,146.58,146.55,29.98]
[1746625088322,29.98,146.63,146.55,29.98]
[1746625088821,6.8233,146.57,146.55,29.98]
[1746625089722,6.8234,146.56,146.55,29.98]
[1746625090519,29.98,146.63,146.51,29.98]
[1746625091323,29.98,146.63,146.51,36.8057]
[1746625091521,29.98,146.63,146.51,29.98]
[1746625092024,29.98,146.63,146.54,6.8241]
[1746625092417,6.8224,146.59,146.54,6.8241]
[1746625093124,6.8224,146.59,146.55,6.8239]
[1746625093323,6.8224,146.59,146.52,2.09]
[1746625093522,6.8224,146.59,146.55,6.8236]
[1746625094619,6.8224,146.59,146.54,6.8243]
[1746625094829,6.8228,146.58,146.54,6.8243]
[1746625095624,6.8231,146.57,146.53,11.0631]
[1746625096429,6.8235,146.56,146.53,11.0631]
[1746625097627,29.98,146.63,146.54,6.8243]
[1746625097926,29.98,146.63,146.55,30.0]
[1746625098126,2.1631,146.66,146.55,30.0]
[1746625098325,32.1631,146.66,146.55,30.0]
[1746625098627,6.8223,146.59,146.56,6.8232]
[1746625099227,13.6389,146.65,146.55,30.0]
[1746625100824,6.8225,146.58,146.55,30.0]
[1746625101627,32.1631,146.66,146.55,30.0]
[1746625102228,6.8207,146.62,146.58,6.8221]
[1746625102435,6.8207,146.62,146.55,30.0]
[1746625102732,6.8207,146.62,146.59,6.8218]
[1746625103033,6.8203,146.63,146.55,30.0]
[1746625103331,6.8203,146.63,146.59,6.8216]
[1746625103728,6.8207,146.62,146.55,30.0]
[1746625103935,6.8207,146.62,146.58,6.8223]
[1746625104235,32.1631,146.66,146.55,30.0]
[1746625104425,32.1631,146.66,146.57,6.8228]
[1746625104630,32.1631,146.66,146.55,30.0]